bitfinex/quotes_ETHUSD_20241104
["timestamp","ask_amount","ask_price","bid_price","bid_amount"]
[1730681659407,4.08599,2447.4,2447.2,0.06835914]
[1730681659609,4.08599,2447.4,2447.1,0.06843136]
[1730681659802,4.08599,2447.4,2447.3,0.06828693]
[1730681659998,4.08599,2447.4,2447.2,0.06835914]
[1730681660207,4.08599,2447.4,2447.3,0.06828693]
[1730681660619,4.08599,2447.4,2447.0,4.08659]
[1730681660824,4.08599,2447.4,2447.3,0.06828693]
[1730681661319,4.08599,2447.4,2447.0,4.16831378]
[1730681661516,5.01374474,2447.4,2447.3,0.06828693]
[1730681661720,5.01374474,2447.4,2446.7,4.08705]
[1730681661721,1.74493674,2447.4,2446.7,4.08705]
[1730681661882,1.74493674,2447.4,2446.8,4.08695]
[1730681661883,4.18838142,2447.3,2446.8,4.08695]
[1730681662822,4.91162,2447.4,2446.8,4.08695]
[1730681662823,4.91164,2447.4,2446.9,4.08679]
[1730681662988,8.99769,2447.4,2446.9,4.08679]
[1730681663315,4.08616,2447.3,2446.9,4.08679]
[1730681664493,4.0863,2447.2,2446.8,4.08696]
[1730681664808,4.0863,2447.2,2446.8,4.91254391]
[1730681665180,4.91164,2447.4,2446.8,4.91254391]
[1730681665387,4.08614,2447.3,2446.8,8.99940391]
[1730681665625,4.08614,2447.3,2446.8,4.91244391]
[1730681665806,4.08614,2447.3,2446.8,4.08686]
[1730681666039,4.08614,2447.3,2446.8,8.17374]
[1730681666416,4.08614,2447.3,2446.8,4.08686]
[1730681666853,4.08614,2447.3,2446.8,4.16858914]
[1730681667317,4.08589,2447.5,2447.0,4.08656]
[1730681667517,4.08598,2447.4,2447.1,0.08172114]
[1730681667748,4.08598,2447.4,2446.9,4.08671]
[1730681667957,4.08598,2447.4,2446.9,5.34466035]
[1730681668653,8.1727,2447.2,2446.7,7.08706]
[1730681669046,4.08631,2447.2,2446.7,7.08706]
[1730681669218,4.08631,2447.2,2446.8,0.06873129]
[1730681669425,4.08631,2447.2,2446.7,7.08706]
[1730681669654,4.08631,2447.2,2446.8,0.06873129]
[1730681669966,4.08631,2447.2,2446.8,4.08695]
[1730681670256,4.08631,2447.2,2446.9,0.06865906]
[1730681670672,4.08663,2447.0,2446.9,0.06865906]
[1730681671019,4.08681,2446.9,2446.4,7.08762]
[1730681671464,4.08699,2446.8,2446.4,4.08762]
[1730681671756,8.17411,2446.8,2446.3,4.08778]
[1730681671956,4.85356,2446.7,2446.2,4.57777198]
[1730681672164,4.85356,2446.7,2446.0,4.94402346]
[1730681672165,4.08731,2446.6,2446.0,4.94402346]
[1730681672319,4.08755,2446.5,2446.0,4.08819]
[1730681672643,4.08788,2446.3,2445.8,8.17705]
[1730681672852,0.10218961,2446.4,2445.8,8.17705]
[1730681672853,0.10218961,2446.4,2445.8,4.08849]
[1730681673018,4.85446,2446.2,2445.7,4.08874]
[1730681673372,4.85438,2446.2,2445.8,0.90334435]
[1730681673542,4.08821,2446.1,2445.6,4.08887]
[1730681673927,4.85437,2446.2,2445.6,4.08887]
[1730681674248,4.08834,2446.0,2445.4,4.94502346]
[1730681674460,4.85517,2445.8,2445.2,4.94533346]
[1730681674634,4.85517,2445.8,2445.3,0.49453335]
[1730681675157,4.85517,2445.8,2445.3,4.58400335]
[1730681675727,4.95738792,2445.8,2445.3,4.58400335]
[1730681676129,4.95738792,2445.8,2445.3,0.49453335]
[1730681676367,4.95738792,2445.8,2445.2,8.60500822]
[1730681676660,0.7664,2445.8,2445.4,4.08927]
[1730681676867,0.7664,2445.8,2445.4,8.17854]
[1730681677154,0.7664,2445.8,2445.4,4.08922]
[1730681677365,4.85473,2446.0,2445.5,0.0817791]
[1730681677568,4.85473,2446.0,2445.4,4.08922]
[1730681677569,4.95695388,2446.0,2445.4,4.08922]
[1730681677862,4.95695388,2446.0,2445.4,8.62993682]
[1730681678163,0.86862388,2446.0,2445.6,4.08895]
[1730681678538,4.95696388,2446.0,2445.5,4.08908]
[1730681679437,4.08823,2446.1,2445.6,0.08177482]
[1730681679658,4.99216148,2446.2,2445.7,4.08871]
[1730681680422,4.99216148,2446.2,2445.6,4.55106716]
[1730681680624,4.99216148,2446.2,2445.6,8.63993716]
[1730681680857,4.99216148,2446.2,2445.7,4.0888]
[1730681681435,4.99216148,2446.2,2445.6,4.55106716]
[1730681681642,4.08815,2446.1,2445.7,0.45510672]
[1730681682574,4.08848,2445.9,2445.4,4.54070682]
[1730681682727,4.08882,2445.7,2445.2,4.51545822]
[1730681682933,4.19133194,2445.6,2445.2,0.42594822]
[1730681683227,4.08916,2445.5,2445.2,0.42594822]
[1730681683426,4.08882,2445.7,2445.0,4.0899]
[1730681683664,4.08882,2445.7,2445.1,0.49077392]
[1730681683967,4.08882,2445.7,2445.3,4.08947]
[1730681684169,4.08882,2445.7,2445.2,4.08955]
[1730681684334,4.08882,2445.7,2445.4,0.06800549]
[1730681684528,4.08882,2445.7,2445.2,8.17911]
[1730681684818,4.08882,2445.7,2445.5,0.06793317]
[1730681684928,8.17774,2445.7,2445.2,4.08955]
[1730681685125,4.08882,2445.7,2445.6,0.06786086]
[1730681685364,4.08945,2445.4,2445.0,0.55]
[1730681685673,4.08945,2445.4,2444.9,0.42557728]
[1730681685674,4.08957,2445.3,2444.9,0.42557728]
[1730681686076,4.08974,2445.2,2444.9,0.42557728]
[1730681686230,4.08948,2445.3,2444.8,4.0903]
[1730681686431,4.08948,2445.3,2444.8,4.90838]
[1730681687267,4.89132,2445.4,2444.9,4.09014]
[1730681687648,4.89132,2445.4,2444.9,4.17193272]
[1730681688190,4.89132,2445.4,2444.8,4.90838]
[1730681688470,4.08949,2445.3,2444.8,4.0903]
[1730681689448,4.89132,2445.4,2444.9,4.0901]
[1730681689666,4.89132,2445.4,2444.9,4.09014]
[1730681690679,4.89131,2445.4,2444.9,4.09014]
[1730681691287,4.89131,2445.4,2445.0,4.08997]
[1730681692493,4.89101,2445.6,2445.1,4.08974]
[1730681693194,0.42719236,2447.2,2446.6,4.6373]
[1730681693403,0.8019,2447.6,2447.1,4.08646]
[1730681693711,0.8019,2447.6,2447.2,4.16800871]
[1730681693991,0.8019,2447.6,2447.3,0.08171167]
[1730681694151,0.8634117,2447.9,2447.4,4.08591]
[1730681694792,0.8634117,2447.9,2447.5,0.08170673]
[1730681695349,0.8634117,2447.9,2447.4,4.08591]
[1730681695550,0.8634117,2447.9,2447.5,0.08170676]
[1730681695784,0.8634117,2447.9,2447.5,4.16748676]
[1730681695986,0.8634117,2447.9,2447.3,4.08603]
[1730681695987,0.8634117,2447.9,2447.4,4.08592]
[1730681697489,1.36245865,2447.9,2447.1,4.08635]
[1730681697690,4.12753784,2447.8,2447.4,3.91062992]
[1730681698394,0.04221784,2447.8,2447.4,3.91062992]
[1730681699409,0.04221784,2447.8,2447.5,0.06578964]
[1730681701290,0.0615117,2447.9,2447.7,7.99608992]
[1730681701494,0.0615117,2447.9,2447.7,13.3042973]
[1730681701691,0.0615117,2447.9,2447.8,0.0655955]
[1730681701891,0.0615117,2447.9,2447.8,4.1508955]
[1730681702094,0.0615117,2447.9,2447.8,4.0853]
[1730681702415,0.0615117,2447.9,2447.8,0.06554106]
[1730681702708,0.0615117,2447.9,2447.8,4.15084106]
[1730681703414,0.0615117,2447.9,2447.8,5.56951872]
[1730681712417,0.8194,2448.7,2448.5,4.08397]
[1730681712938,0.8194,2448.7,2448.6,0.0604309]
[1730681713097,0.8194,2448.7,2448.6,7.99458992]
[1730681713293,0.04221784,2449.0,2448.6,9.20243591]
[1730681713497,0.04221784,2449.0,2448.6,9.2628188]
[1730681713805,4.08356,2448.9,2448.6,0.06038289]
[1730681714005,0.8194,2448.8,2448.6,0.06038289]
[1730681714221,0.8194,2448.8,2448.4,4.08419]
[1730681714432,0.8194,2448.8,2448.7,0.05817609]
[1730681714643,0.8194,2448.8,2448.6,7.99456992]
[1730681714797,0.8194,2448.8,2448.7,0.05817609]
[1730681716258,0.04221784,2449.0,2448.7,0.05817609]
[1730681716568,4.12562784,2449.0,2448.7,0.05817609]
[1730681717388,0.04221784,2449.0,2448.7,0.05817609]
[1730681718499,0.0615117,2449.1,2448.9,7.99408992]
[1730681718699,0.0615117,2449.1,2449.0,4.71494109]
[1730681719011,4.12374784,2450.1,2449.5,4.08238]
[1730681719012,0.8194,2450.0,2449.5,4.08238]
[1730681719314,0.8194,2450.0,2449.8,4.08191]
[1730681719458,0.8194,2450.3,2450.0,4.08162]
[1730681719662,0.10372954,2450.4,2450.0,4.08162]
[1730681719663,0.0615117,2450.4,2450.1,4.08144]
[1730681719896,0.0615117,2450.4,2450.1,4.13635963]
[1730681720088,0.0615117,2450.4,2450.1,4.13628963]
[1730681722103,0.0615117,2450.4,2450.3,4.08113]
[1730681722306,0.0615117,2450.4,2450.3,4.16274364]
[1730681722465,0.0615117,2450.4,2450.3,8.74368287]
[1730681723505,0.0615117,2450.4,2450.3,0.05454213]
[1730681723803,0.8540117,2450.4,2450.2,4.08128]
[1730681724006,0.8540117,2450.4,2450.3,0.05429926]
[1730681724174,0.0615117,2450.4,2450.3,4.13542926]
[1730681725000,0.0615117,2450.4,2450.3,4.95710019]
[1730681725679,0.0615117,2450.4,2450.3,9.56511093]
[1730681725869,0.0615117,2450.4,2450.3,10.11511093]
[1730681726601,0.0615117,2450.4,2450.3,13.11511093]
[1730681727505,0.0615117,2450.4,2450.3,10.11511093]
[1730681728069,0.0615117,2450.4,2450.3,13.11511093]
[1730681728894,0.0615117,2450.4,2450.3,0.05429926]
[1730681729097,0.0615117,2450.4,2450.3,0.08161327]
[1730681729270,0.0615117,2450.4,2450.3,4.68962401]
[1730681729607,0.0615117,2450.4,2450.3,8.742494]
[1730681730411,0.0615117,2450.4,2450.3,9.292494]
[1730681730595,0.0615117,2450.4,2450.3,4.661364]
[1730681731914,0.0615117,2450.4,2450.3,0.05335326]
[1730681732093,0.0615117,2450.4,2450.2,8.16234]
[1730681732279,0.0615117,2450.4,2450.3,4.08113]
[1730681732475,0.0615117,2450.4,2450.3,4.21609725]
[1730681732677,0.0615117,2450.4,2450.3,4.13448326]
[1730681733196,0.00294247,2450.7,2450.3,4.13448326]
[1730681734113,4.07999,2451.0,2450.4,0.08161399]
[1730681734274,0.04221784,2451.0,2450.6,4.08062]
[1730681734473,0.04221784,2451.0,2450.7,4.08042]
[1730681734810,4.12189784,2451.2,2450.7,3.69491918]
[1730681734984,5.24204262,2451.2,2450.7,3.69491918]
[1730681735185,4.07982,2451.1,2450.7,0.05306518]
[1730681735409,0.04221784,2451.2,2450.7,0.05306518]
[1730681735714,0.04221784,2451.2,2450.7,4.13351518]
[1730681735873,4.12184784,2451.2,2450.7,8.21396518]
[1730681736075,4.07955,2451.3,2450.8,4.08029]
[1730681736328,5.68793,2451.3,2450.8,4.08029]
[1730681736485,0.04221784,2451.2,2450.9,0.05296269]
[1730681736811,0.04221784,2451.2,2450.8,4.08019]
[1730681737014,0.04221784,2451.2,2451.0,0.0528907]
[1730681737215,1.60838,2451.3,2450.9,0.05288925]
[1730681737373,0.7925,2451.3,2451.1,0.05274527]
[1730681737573,0.7925,2451.3,2451.0,4.13275726]
[1730681737812,0.7925,2451.3,2451.2,0.05267329]
[1730681738014,0.04221784,2451.4,2451.0,4.07996]
[1730681738199,4.84014,2451.5,2451.2,0.05264455]
[1730681738378,4.84014,2451.5,2451.0,4.07996]
[1730681738379,0.761,2451.5,2451.1,4.07978]
[1730681738577,4.18272954,2451.6,2451.1,4.07978]
[1730681738578,0.0615117,2451.6,2451.3,0.05251191]
[1730681738813,4.07939,2451.4,2451.2,0.05258389]
[1730681739120,0.0615117,2451.6,2451.1,4.0798]
[1730681739319,0.0615117,2451.6,2451.3,0.05243529]
[1730681739679,4.1404817,2451.6,2451.2,0.13408969]
[1730681739940,4.1404817,2451.6,2451.3,0.0524321]
[1730681740273,0.0615117,2451.6,2451.3,0.0524321]
[1730681740878,0.0615117,2451.6,2451.3,4.1318821]
[1730681741081,0.0615117,2451.6,2451.3,0.0524321]
[1730681741978,4.1404817,2451.6,2451.3,0.0524321]
[1730681742173,4.07913,2451.5,2451.3,0.0524321]
[1730681742377,4.96240487,2451.6,2451.0,4.62983]
[1730681742378,4.96240487,2451.6,2451.0,4.07983]
[1730681742577,4.96240487,2451.6,2451.4,0.05233141]
[1730681742879,0.0615117,2451.6,2451.4,4.07929]
[1730681743097,0.0615117,2451.6,2451.5,0.05225944]
[1730681744198,0.0615117,2451.6,2451.3,4.07945]
[1730681744404,0.0615117,2451.6,2451.5,0.05225625]
[1730681744699,0.0615117,2451.6,2451.3,0.8127]
[1730681744899,0.0615117,2451.6,2451.5,0.05225625]
[1730681745344,0.0615117,2451.6,2451.3,0.8127]
[1730681745516,0.0615117,2451.6,2451.5,0.05225625]
[1730681745947,0.0615117,2451.6,2451.5,4.76296125]
[1730681746146,0.0615117,2451.6,2451.5,6.11813964]
[1730681746548,0.0615117,2451.6,2451.5,6.93083964]
[1730681748273,4.83823,2452.7,2452.2,4.07782]
[1730681748416,0.761,2452.7,2452.3,4.15921692]
[1730681748611,4.07698,2452.8,2452.3,4.12886162]
[1730681749361,0.0615117,2452.9,2452.4,4.07755]
[1730681749653,4.07751,2452.5,2452.4,0.05113971]
[1730681749813,1.00133471,2452.9,2452.4,0.05113971]
[1730681749814,4.07714,2452.7,2452.4,0.05113971]
[1730681750018,4.07714,2452.7,2452.2,0.8127]
[1730681750019,4.07714,2452.7,2452.3,0.08154718]
[1730681750247,4.1139317,2452.7,2452.5,0.05106781]
[1730681750441,4.1139317,2452.7,2452.4,0.05113971]
[1730681750752,4.1139317,2452.7,2452.5,0.05106781]
[1730681751054,0.0367917,2452.7,2452.3,4.15920721]
[1730681751262,0.0367917,2452.7,2452.6,0.05099591]
[1730681751419,0.0367917,2452.7,2452.5,4.07739]
[1730681751620,0.0367917,2452.7,2452.6,0.13237523]
[1730681751856,0.0367917,2452.7,2452.6,4.20967523]
[1730681752352,0.0367917,2452.7,2452.6,5.57237523]
[1730681752578,0.0367917,2452.7,2452.6,6.92704202]
[1730681752957,0.0367917,2452.7,2452.6,6.8455064]
[1730681753391,0.0367917,2452.7,2452.6,2.7682064]
[1730681753684,0.0367917,2452.7,2452.6,1.41353961]
[1730681754778,0.0367917,2452.7,2452.6,5.49083961]
[1730681754955,0.0367917,2452.7,2452.6,0.60083961]
[1730681755154,0.0367917,2452.7,2452.6,0.05083961]
[1730681755387,0.0367917,2452.7,2452.4,0.8127]
[1730681755682,0.0367917,2452.7,2452.5,0.05091151]
[1730681756060,0.0367917,2452.7,2452.5,4.12836151]
[1730681756277,0.0367917,2452.7,2452.5,0.05091151]
[1730681757072,0.0367917,2452.7,2452.5,4.12834151]
[1730681757589,0.0367917,2452.7,2452.5,0.05091151]
[1730681758284,0.0367917,2452.7,2452.5,4.12832151]
[1730681758492,0.0367917,2452.7,2452.6,4.0773]
[1730681758983,8.15305,2453.1,2452.6,4.12813961]
[1730681759668,8.15305,2453.1,2452.6,0.05083961]
[1730681759669,0.04221784,2453.0,2452.6,0.05083961]
[1730681759879,4.07707,2452.8,2452.6,0.05083961]
[1730681760118,8.15413,2452.8,2452.3,4.07765]
[1730681760319,4.07706,2452.8,2452.7,0.05050939]
[1730681760520,0.761,2452.9,2452.3,4.07765]
[1730681760707,4.11918784,2452.8,2452.7,0.05042648]
[1730681760910,4.07721,2452.7,2452.3,0.55]
[1730681761525,0.761,2452.9,2452.2,0.55]
[1730681761844,4.07698,2452.8,2452.4,0.55]
[1730681762129,0.80321784,2452.9,2452.4,0.55]
[1730681762130,0.761,2452.9,2452.4,0.55]
[1730681762335,4.83792,2452.9,2452.4,4.62763]
[1730681762831,4.07697,2452.8,2452.4,0.55]
[1730681763035,4.07697,2452.8,2452.2,0.55]
[1730681763240,4.07738,2452.6,2452.2,0.55]
[1730681764657,4.07708,2452.8,2452.3,0.08154612]
[1730681765029,4.07708,2452.8,2452.3,4.15921612]
[1730681765559,8.15414,2452.8,2452.3,4.07767]
[1730681765854,4.07706,2452.8,2452.3,4.07767]
[1730681766425,4.07722,2452.7,2452.2,4.62796]
[1730681766722,0.761,2452.7,2451.9,3.0]
[1730681766919,0.761,2452.7,2451.8,7.89121]
[1730681766920,4.07793,2452.3,2451.8,4.89121]
[1730681767345,4.07773,2452.4,2451.9,0.08155609]
[1730681767839,0.407773,2452.4,2451.9,4.07844]
[1730681768186,4.07759,2452.5,2452.0,4.07813]
[1730681768762,4.07767,2452.4,2452.0,4.07813]
[1730681768919,4.07767,2452.4,2451.9,4.07845]
[1730681769115,4.07759,2452.5,2451.8,4.89121]
[1730681769323,4.07767,2452.4,2451.9,4.62846]
[1730681769551,4.07759,2452.5,2452.0,4.07821]
[1730681769730,4.07694,2452.9,2452.4,0.55]
[1730681769944,0.79511784,2453.2,2452.6,0.55]
[1730681770148,0.7529,2453.2,2452.8,8.15375]
[1730681770318,4.82923,2453.2,2452.7,4.07713]
[1730681770521,4.82923,2453.2,2452.7,4.1586634]
[1730681770717,4.82923,2453.2,2452.7,0.0815334]
[1730681770945,0.7529,2453.2,2452.8,4.07689]
[1730681771366,4.82898,2453.4,2452.9,4.15830869]
[1730681771665,0.7529,2453.4,2453.0,4.07648]
[1730681771825,4.07608,2453.4,2452.9,4.07671]
[1730681772164,4.07608,2453.4,2452.9,4.15823185]
[1730681772453,4.07608,2453.4,2452.9,4.07671]
[1730681773063,4.07608,2453.4,2453.0,0.08152188]
[1730681773417,0.89664661,2453.4,2452.7,0.7614]
[1730681773663,4.07671,2453.0,2452.4,0.7614]
[1730681773868,4.07671,2453.0,2452.4,4.83903]
[1730681774069,4.0771,2452.8,2452.3,4.07767]
[1730681774355,4.0771,2452.8,2452.4,0.04910164]
[1730681774566,4.07714,2452.7,2452.4,0.04910164]
[1730681774745,4.07714,2452.7,2452.2,4.83935]
[1730681774746,4.07714,2452.7,2452.3,4.07776]
[1730681775139,4.07714,2452.7,2452.5,0.04905524]
[1730681775440,4.07714,2452.7,2452.6,0.04898334]
[1730681775441,5.645437,2452.7,2452.6,0.04898334]
[1730681775636,4.892537,2452.7,2452.6,0.04898334]
[1730681775835,4.07834,2452.0,2451.6,0.7614]
[1730681776060,4.07834,2452.0,2451.4,7.97606266]
[1730681776256,4.07862,2451.9,2451.3,4.84085]
[1730681776559,4.07846,2451.9,2451.3,4.84085]
[1730681776768,4.07867,2451.8,2451.3,4.84085]
[1730681776967,4.07873,2451.8,2451.3,4.84085]
[1730681777267,4.07846,2451.9,2451.3,0.7614]
[1730681777566,4.07874,2451.8,2451.3,0.7614]
[1730681778056,4.07874,2451.8,2451.3,4.84085]
[1730681778257,4.07874,2451.8,2451.4,0.55]
[1730681778460,4.07907,2451.6,2451.0,4.84123]
[1730681778666,4.07932,2451.4,2451.0,4.84123]
[1730681778886,4.07926,2451.5,2451.0,4.84123]
[1730681779251,4.07931,2451.4,2450.8,4.08016]
[1730681779594,4.07907,2451.6,2450.8,4.08016]
[1730681779761,4.07915,2451.5,2451.0,4.07994]
[1730681779969,4.07907,2451.6,2451.1,0.08158568]
[1730681780281,4.07946,2451.3,2450.8,4.08014]
[1730681780449,4.12167784,2451.3,2450.8,4.08014]
[1730681780650,4.07946,2451.3,2450.8,4.08014]
[1730681781077,4.07908,2451.6,2450.9,4.161693]
[1730681781278,4.12129784,2451.6,2451.1,4.07977]
[1730681781492,4.12129784,2451.6,2451.1,4.07971]
[1730681782290,4.12129784,2451.6,2451.0,4.16139795]
[1730681782466,4.12129784,2451.6,2451.1,4.07974]
[1730681782850,4.07918,2451.5,2451.0,4.07981]
[1730681783055,4.07926,2451.5,2450.9,4.63013]
[1730681783257,4.12147784,2451.5,2450.9,5.577302]
[1730681783487,0.04221784,2451.5,2451.0,4.07994]
[1730681783652,4.07931,2451.4,2451.0,4.07994]
[1730681784756,4.07931,2451.4,2450.9,1.497172]
[1730681785459,4.07931,2451.4,2450.9,5.577262]
[1730681785780,8.15875,2451.4,2450.9,1.497172]
[1730681785951,4.12177784,2451.3,2450.9,0.947172]
[1730681786479,4.12177784,2451.3,2450.8,4.08017]
[1730681787986,4.07972,2451.2,2450.8,0.55]
[1730681788197,4.87862,2451.2,2450.8,0.55]
[1730681788494,4.87862,2451.2,2450.8,4.63028]
[1730681788698,0.7989,2451.2,2450.8,4.63028]
[1730681788895,4.07942,2451.4,2450.9,4.70077123]
[1730681789189,4.07942,2451.4,2451.0,0.04931247]
[1730681789686,4.12167784,2451.3,2451.0,0.04931247]
[1730681789899,0.7989,2451.5,2451.1,4.07977]
[1730681790191,0.84111784,2451.5,2451.0,4.12911247]
[1730681790355,0.84111784,2451.5,2451.1,0.04923411]
[1730681791165,4.07931,2451.4,2451.1,0.04923411]
[1730681791371,4.07963,2451.2,2451.1,0.04923411]
[1730681791602,4.07963,2451.2,2450.8,0.55]
[1730681791894,4.07963,2451.2,2450.9,0.04937809]
[1730681792091,4.07942,2451.4,2450.9,4.79771001]
[1730681792254,4.12163784,2451.4,2450.9,4.79771001]
[1730681792460,4.12163784,2451.4,2450.9,4.79765001]
[1730681792866,8.20104784,2451.4,2450.9,4.79765001]
[1730681793058,8.15883,2451.4,2450.9,4.79765001]
[1730681793272,4.07954,2451.3,2451.0,0.534765]
[1730681793758,4.07954,2451.3,2451.1,0.04923411]
[1730681794356,4.07963,2451.2,2451.1,0.04923411]
[1730681794560,4.07963,2451.2,2450.8,0.55]
[1730681794858,4.07963,2451.2,2450.9,0.04938446]
[1730681794859,0.7989,2451.1,2450.9,0.04938446]
[1730681795062,4.07996,2451.0,2450.7,0.4252179]
[1730681795280,4.07996,2451.0,2450.7,1.17578869]
[1730681795506,4.08023,2450.9,2450.5,0.55]
[1730681795670,4.08032,2450.8,2450.4,4.88977]
[1730681796275,4.08032,2450.8,2450.4,1.23436851]
[1730681796579,4.08032,2450.8,2450.4,2.75560563]
[1730681797495,0.04221784,2450.9,2450.4,0.42546851]
[1730681797712,0.04221784,2450.9,2450.0,4.08149]
[1730681797713,4.08079,2450.5,2450.0,4.08149]
[1730681797998,4.08113,2450.3,2449.9,0.7718]
[1730681798308,4.08142,2450.2,2449.9,0.485373]
[1730681798466,8.16281,2450.2,2449.9,0.485373]
[1730681798658,4.08139,2450.2,2449.9,0.485373]
[1730681798861,4.08147,2450.1,2449.7,0.7718]
[1730681799062,0.79611784,2450.1,2449.6,0.06121154]
[1730681799357,8.16339,2450.0,2449.6,0.06121154]
[1730681799562,4.08164,2450.0,2449.6,0.06121154]
[1730681799802,4.0818,2449.9,2449.6,0.06121154]
[1730681801598,4.08197,2449.8,2449.6,0.06121154]
[1730681802274,0.04221784,2449.9,2449.6,0.06121154]
[1730681802477,0.04221784,2450.0,2449.6,4.14349154]
[1730681802693,0.04221784,2450.0,2449.6,5.09401347]
[1730681803000,0.79611784,2450.4,2449.9,4.08167]
[1730681803204,0.04221784,2450.3,2449.9,4.85347]
[1730681803500,0.79611784,2450.4,2450.0,4.08162]
[1730681803721,4.87709784,2450.4,2450.1,0.893509]
[1730681804478,4.87709784,2450.4,2450.2,0.04881467]
[1730681804879,4.09017,2450.9,2450.2,0.04881467]
[1730681804880,0.04221784,2450.3,2450.2,0.04881467]
[1730681805200,0.04221784,2450.8,2450.2,4.21173231]
[1730681805400,0.7539,2450.9,2450.4,4.08088]
[1730681805561,4.83405,2450.9,2450.5,0.408088]
[1730681805762,4.83405,2450.9,2450.5,0.45657818]
[1730681806222,0.04221784,2450.8,2450.5,0.45657818]
[1730681806687,4.83405,2450.9,2450.5,0.45657818]
[1730681807005,0.7539,2450.9,2450.5,4.53732818]
[1730681807191,0.7539,2450.9,2450.6,0.89496031]
[1730681807366,4.83404,2450.9,2450.6,0.89496031]
[1730681807567,4.83404,2450.9,2450.7,0.0482569]
[1730681808071,4.07982,2451.1,2450.7,0.0482569]
[1730681808072,0.04221784,2451.0,2450.7,0.0482569]
[1730681808398,4.08014,2450.9,2450.7,0.0482569]
[1730681809585,4.0803,2450.8,2450.7,0.0482569]
[1730681809787,4.12251784,2450.8,2450.7,0.0482569]
[1730681810148,4.08063,2450.6,2450.1,4.974899]
[1730681810326,4.08063,2450.6,2450.2,0.5746699]
[1730681810496,0.04221784,2450.7,2450.2,0.5746699]
[1730681810700,0.04221784,2450.7,2450.3,4.0811]
[1730681811815,4.12276784,2450.7,2450.2,4.6559599]
[1730681812018,4.08064,2450.6,2450.2,0.5746699]
[1730681812805,4.08081,2450.5,2450.2,0.5746699]
[1730681813007,4.83454,2450.6,2450.2,0.5746699]
[1730681813211,8.91528,2450.6,2450.1,4.974969]
[1730681813709,4.83454,2450.6,2450.1,4.974969]
[1730681813913,4.08096,2450.4,2450.1,0.893509]
[1730681814092,4.08096,2450.4,2450.0,4.85341]
[1730681814730,4.08096,2450.4,2449.9,3.55]
[1730681815100,4.08121,2450.3,2449.9,3.0]
[1730681815296,4.08146,2450.1,2449.7,4.85379]
[1730681815620,4.08138,2450.2,2449.7,1.49122519]
[1730681815621,4.83528,2450.2,2449.7,1.49122519]
[1730681815818,0.04221784,2450.3,2449.9,4.08176]
[1730681816329,4.83496,2450.4,2449.9,4.08176]
[1730681816860,4.83496,2450.4,2450.0,4.08163]
[1730681817220,0.04221784,2450.5,2450.1,4.08146]
[1730681817423,0.7539,2450.7,2450.3,4.08097]
[1730681817640,0.7539,2450.7,2450.2,1.66973487]
[1730681817641,4.87659784,2450.7,2450.2,1.588109]
[1730681817917,4.87659784,2450.7,2449.9,4.695095]
[1730681817918,8.16207,2450.4,2449.9,4.695095]
[1730681818113,4.08101,2450.4,2449.9,4.695095]
[1730681818318,4.08101,2450.4,2449.9,0.7718]
[1730681818319,4.12336784,2450.3,2449.9,0.7718]
[1730681818639,4.12336784,2450.3,2449.8,4.08195]
[1730681818961,4.0813,2450.2,2449.7,5.57325519]
[1730681819312,4.83504,2450.3,2449.8,4.21247435]
[1730681820251,4.08131,2450.2,2449.8,0.13063435]
[1730681820632,4.08131,2450.2,2449.8,4.21251435]
[1730681821473,4.83504,2450.3,2449.9,4.08169]
[1730681821627,4.83504,2450.3,2449.8,4.13088403]
[1730681821830,0.7539,2450.3,2450.0,0.04907351]
[1730681822046,0.7539,2450.3,2450.1,0.04900146]
[1730681822358,0.7539,2450.3,2449.9,4.08175]
[1730681822559,0.7539,2450.3,2450.2,0.04892942]
[1730681822719,4.08031,2450.8,2450.2,4.85301]
[1730681822720,4.08055,2450.7,2450.2,4.85301]
[1730681823042,0.01,2451.4,2450.3,4.08104]
[1730681823043,4.08013,2450.9,2450.3,4.08104]
[1730681823245,3.89683266,2451.6,2450.7,4.08044]
[1730681823246,4.0798,2451.1,2450.7,4.08044]
[1730681823448,4.12201784,2451.1,2450.6,4.08059]
[1730681823650,4.07997,2451.0,2450.8,0.04851006]
[1730681823847,4.12234784,2450.9,2450.7,0.04858207]
[1730681824142,4.12234784,2450.9,2450.4,4.63085]
[1730681824349,4.12234784,2450.9,2450.4,5.579226]
[1730681824658,4.12234784,2450.9,2450.5,4.08078]
[1730681825024,0.04221784,2451.0,2450.6,4.08062]
[1730681825421,4.08014,2450.9,2450.4,5.579236]
[1730681825637,4.08014,2450.9,2450.5,4.08079]
[1730681826061,4.12218784,2451.0,2450.5,4.08069]
[1730681826264,4.12218784,2451.0,2450.5,4.6385966]
[1730681826966,4.12218784,2451.0,2450.5,8.7192966]
[1730681827258,4.12218784,2451.0,2450.5,8.7193066]
[1730681827824,4.12218784,2451.0,2450.5,4.6385966]
[1730681828263,4.12218784,2451.0,2450.5,8.7193166]
[1730681828564,4.08022,2450.9,2450.4,0.948376]
[1730681828766,4.08022,2450.9,2450.3,4.081]
[1730681828767,4.88360784,2450.8,2450.3,4.081]
[1730681829150,4.88360784,2450.8,2450.3,8.16204]
[1730681829824,4.88360784,2450.8,2450.3,8.16205]
[1730681830035,0.761,2450.8,2450.4,4.08087]
[1730681831645,0.761,2450.8,2450.5,4.08073]
[1730681832265,0.80321784,2451.0,2450.5,4.08073]
[1730681832433,4.08014,2450.9,2450.5,4.08073]
[1730681833731,4.97646578,2450.9,2450.3,0.08161356]
[1730681833936,4.97646578,2450.9,2450.2,4.85297]
[1730681833937,4.0805,2450.7,2450.2,4.85297]
[1730681834169,0.761,2450.5,2450.1,4.63146]
[1730681834469,0.761,2450.5,2450.3,0.04855136]
[1730681834470,4.84182,2450.5,2450.3,0.04855136]
[1730681834634,4.84182,2450.5,2450.4,0.04847934]
[1730681835042,0.761,2450.5,2450.4,0.04847934]
[1730681835772,0.761,2450.5,2450.3,4.08112]
[1730681836066,4.08062,2450.7,2450.1,4.08146]
[1730681836067,0.04221784,2450.6,2450.4,0.04847934]
[1730681836268,4.12292784,2450.6,2450.4,0.04847934]